bitfinex-derivatives/quotes_ETHF0:USTF0_20240907
["timestamp","ask_amount","ask_price","bid_price","bid_amount"]
[1725710245461,3.2078,2285.6,2285.5,0.4376]
[1725710246772,3.2078,2285.6,2285.4,0.43761]
[1725710247266,3.2078,2285.6,2285.5,0.4376]
[1725710247572,0.3857,2285.7,2285.5,0.4376]
[1725710249770,0.3857,2285.7,2285.3,3.24958334]
[1725710249973,3.2078,2286.0,2285.6,3.03]
[1725710250174,3.2078,2286.0,2285.7,0.43756]
[1725710254675,3.2078,2286.0,2285.8,0.43754]
[1725710255171,3.2078,2286.0,2285.9,0.3606]
[1725710259478,3.2078,2286.0,2285.7,0.43755]
[1725710259779,3.2078,2286.0,2285.7,0.79785]
[1725710259979,0.376,2285.9,2285.7,0.79785]
[1725710260382,0.376,2285.9,2285.6,3.03]
[1725710260685,0.43756,2285.8,2285.4,4.00571]
[1725710260873,0.3627,2285.7,2285.4,4.00571]
[1725710262470,0.80027,2285.7,2285.4,4.00571]
[1725710262673,0.43759,2285.6,2285.4,3.5681]
[1725710263173,0.3604,2285.5,2285.4,3.5681]
[1725710269180,0.798,2285.5,2285.4,3.5681]
[1725710269385,0.3604,2285.5,2285.4,3.5681]
[1725710270676,0.3604,2285.5,2285.4,0.3603]
[1725710271373,0.798,2285.5,2285.4,0.3603]
[1725710274386,0.43762,2285.4,2285.2,1.26]
[1725710274684,0.366,2285.3,2285.2,1.6367]
[1725710277685,0.366,2285.3,2284.9,1.26]
[1725710277686,0.43768,2285.2,2284.9,1.26]
[1725710277885,0.43768,2285.2,2285.0,0.3758]
[1725710278587,0.43768,2285.1,2285.0,0.3758]
[1725710278777,0.43768,2285.2,2285.0,1.6358]
[1725710279477,0.366,2285.3,2285.0,1.6358]
[1725710279683,0.43768,2285.1,2285.0,1.6358]
[1725710279878,3.2078,2285.2,2284.9,1.26]
[1725710280084,0.4377,2285.0,2284.7,2.07355]
[1725710280384,0.3621,2284.9,2284.7,2.07355]
[1725710281985,0.3621,2284.9,2284.7,1.6358]
[1725710282580,0.3621,2284.9,2284.7,2.07355]
[1725710283289,0.3621,2284.9,2284.7,1.6358]
[1725710283585,0.3621,2284.9,2284.7,2.07355]
[1725710284392,0.3621,2284.9,2284.7,1.6358]
[1725710284795,0.3621,2284.9,2284.7,2.07355]
[1725710285092,0.3621,2284.9,2284.7,1.6358]
[1725710285891,0.3621,2284.9,2284.7,2.07355]
[1725710286087,0.3621,2284.9,2284.7,1.6358]
[1725710291986,0.79982,2284.9,2284.7,1.6358]
[1725710292389,0.3621,2284.9,2284.7,1.6358]
[1725710293294,3.6455,2285.0,2284.7,1.6358]
[1725710293596,3.2078,2285.1,2284.7,2.07355]
[1725710293795,3.6454,2285.5,2285.1,0.43767]
[1725710294101,3.6454,2285.5,2285.2,2.3858]
[1725710294393,3.64542,2285.5,2285.2,2.3858]
[1725710297999,3.64542,2285.5,2285.2,2.82345]
[1725710298000,3.64541,2285.5,2285.2,2.82345]
[1725710298393,3.2078,2285.5,2285.2,2.82345]
[1725710298599,3.6454,2285.5,2285.2,2.82345]
[1725710301998,0.4376,2285.5,2285.2,2.82345]
[1725710302201,3.6454,2285.5,2285.2,2.82345]
[1725710303307,0.4376,2285.5,2285.2,2.82345]
[1725710303498,3.6454,2285.5,2285.2,2.82345]
[1725710303900,3.6454,2285.5,2285.3,0.43764]
[1725710306902,3.6454,2285.5,2285.2,2.82345]
[1725710307310,0.3893,2285.6,2285.3,0.43764]
[1725710307609,0.4376,2285.5,2285.3,0.43764]
[1725710309609,0.82689,2285.6,2285.4,0.43762]
[1725710309810,0.82689,2285.6,2285.5,0.3568]
[1725710311708,0.3854,2285.7,2285.5,1.6168]
[1725710312010,0.3854,2285.7,2285.6,2.08018]
[1725710312413,0.3955,2285.9,2285.7,0.43756]
[1725710312711,0.3955,2285.9,2285.8,0.3622]
[1725710313713,3.2078,2286.0,2285.8,0.3622]
[1725710313913,3.5657,2286.0,2285.8,0.79973]
[1725710315116,3.5657,2286.0,2285.8,0.3622]
[1725710317014,0.3579,2286.0,2285.8,0.79974]
[1725710317219,3.5657,2286.0,2285.8,0.3622]
[1725710318709,3.5657,2286.0,2285.8,0.79974]
[1725710319013,0.3579,2286.0,2285.8,0.79974]
[1725710324511,0.3579,2286.0,2285.8,0.43754]
[1725710325115,0.79541,2286.0,2285.7,0.43755]
[1725710325312,0.79541,2286.0,2285.8,0.43754]
[1725710325510,0.3579,2286.0,2285.8,0.43754]
[1725710326515,3.5657,2286.0,2285.8,0.43754]
[1725710326820,3.5657,2286.0,2285.9,0.43753]
[1725710327620,0.3579,2286.0,2285.9,0.43753]
[1725710327822,3.5657,2286.0,2285.9,0.43753]
[1725710328720,0.3579,2286.0,2285.9,0.43753]
[1725710328919,0.3579,2286.0,2285.8,0.43754]
[1725710329121,3.5657,2286.0,2285.9,0.43753]
[1725710329622,0.3579,2286.0,2285.9,0.43753]
[1725710329822,3.5657,2286.0,2285.9,0.43753]
[1725710330014,0.3579,2286.0,2285.9,0.43753]
[1725710330215,3.5657,2286.0,2285.9,0.43753]
[1725710334518,0.3579,2286.0,2285.9,0.43753]
[1725710334919,3.5657,2286.0,2285.9,0.43753]
[1725710340540,0.3579,2286.0,2285.9,0.43753]
[1725710340732,3.5657,2286.0,2285.9,0.43753]
[1725710341742,0.3579,2286.0,2285.9,0.43753]
[1725710341938,3.5657,2286.0,2285.9,0.43753]
[1725710345146,4.00321,2286.0,2285.8,0.43753]
[1725710345346,3.5657,2286.0,2285.9,0.43753]
[1725710346450,3.5657,2286.0,2285.7,1.14694581]
[1725710346639,3.5657,2286.0,2285.6,2.78954581]
[1725710346839,3.5657,2286.0,2285.9,0.43753]
[1725710347746,3.5657,2286.0,2285.8,0.43753]
[1725710347943,3.5657,2286.0,2285.9,0.43753]
[1725710349642,3.2078,2286.0,2285.9,0.43753]
[1725710353543,3.97994529,2286.1,2285.9,0.43753]
[1725710353849,3.2078,2286.0,2285.9,0.43753]
[1725710357541,6.07634529,2286.0,2285.9,1.58447581]
[1725710359753,6.07634529,2286.0,2285.9,1.14694581]
[1725710359940,6.51385529,2286.0,2285.9,1.14694581]
[1725710360550,3.64531,2286.0,2285.8,1.96738581]
[1725710360738,2.87070141,2285.9,2285.8,1.96738581]
[1725710363653,1.09396,2285.6,2285.2,1.88309799]
[1725710363953,0.43768,2285.1,2284.9,1.14909927]
[1725710364142,6.45895059,2285.0,2284.8,1.58682927]
[1725710364342,3.5893,2285.0,2284.8,0.43773]
[1725710364543,5.88110407,2285.0,2284.8,0.43773]
[1725710365456,3.5893,2285.0,2284.8,0.43773]
[1725710366758,3.5893,2285.0,2284.7,2.83724]
[1725710369658,3.2078,2284.8,2284.7,2.83724]
[1725710369849,3.2078,2284.8,2284.7,7.21404]
[1725710371050,3.2078,2284.8,2284.7,2.83724]
[1725710371251,3.2078,2284.8,2284.7,7.21404]
[1725710372054,3.2078,2284.8,2284.7,2.83724]
[1725710372249,3.2078,2284.8,2284.7,7.21404]
[1725710373158,3.2078,2284.8,2284.7,2.83724]
[1725710376465,3.2078,2284.8,2284.7,2.3995]
[1725710376662,3.2078,2284.8,2284.7,2.83725]
[1725710378967,3.2078,2284.8,2284.7,1.57725]
[1725710387274,0.8192,2285.0,2284.7,1.57725]
[1725710387770,3.2078,2284.8,2284.7,1.57725]
[1725710389069,0.8192,2285.0,2284.8,0.43774]
[1725710389365,3.2078,2284.9,2284.8,0.43774]
[1725710389571,0.8192,2285.0,2284.8,0.43774]
[1725710389772,3.64552,2284.9,2284.7,1.57724]
[1725710391272,0.43772,2284.9,2284.7,1.57724]
[1725710391471,3.2078,2284.8,2284.7,1.1395]
[1725710391776,3.64554,2284.8,2284.7,1.1395]
[1725710392075,3.2078,2284.8,2284.7,1.1395]
[1725710392575,0.43773,2284.9,2284.7,1.1395]
[1725710392770,3.2078,2284.8,2284.7,1.1395]
[1725710393569,0.43773,2284.9,2284.7,1.1395]
[1725710393966,3.2078,2284.8,2284.7,1.1395]
[1725710395064,0.43773,2284.9,2284.7,1.1395]
[1725710395969,3.2078,2284.8,2284.7,1.57725]
[1725710396974,3.2078,2284.8,2284.7,1.1395]
[1725710397475,3.2078,2284.8,2284.7,1.57725]
[1725710398078,0.43773,2284.9,2284.7,1.57725]
[1725710401972,0.43773,2284.9,2284.7,1.21725]
[1725710402481,2.29180407,2285.7,2284.9,1.0943]
[1725710402677,0.43759,2285.6,2285.4,1.26]
[1725710402981,0.43759,2285.6,2285.1,3.2078]
[1725710402982,0.43759,2285.6,2285.3,0.66153315]
[1725710403182,1.19408,2285.7,2285.4,0.43762]
[1725710403377,0.7565,2285.7,2285.3,0.80243]
[1725710403772,3.77274246,2286.2,2285.9,0.43752]
[1725710403975,0.3699,2286.1,2285.8,1.26]
[1725710404175,3.5944,2286.2,2286.1,0.43749]
[1725710404176,0.3866,2286.2,2286.1,0.43749]
[1725710404379,3.9643,2286.5,2286.0,1.26]
[1725710404573,3.9643,2286.5,2286.2,0.43745]
[1725710404783,3.9643,2286.5,2286.2,1.69745]
[1725710404978,3.2078,2286.5,2286.2,1.69745]
[1725710405486,3.2078,2286.5,2286.1,3.5726]
[1725710405990,4.4678,2286.5,2286.1,0.3648]
[1725710406290,0.3728,2286.4,2286.1,0.3648]
[1725710406581,0.7362,2286.4,2286.1,0.3648]
[1725710406980,0.7362,2286.4,2285.9,0.3719]
[1725710407177,4.4678,2286.1,2285.5,42.38137771]
[1725710407380,0.3728,2286.0,2285.6,0.3627]
[1725710407785,0.3728,2286.0,2285.7,1.26]
[1725710408888,3.2078,2285.8,2285.6,0.3627]
[1725710409092,3.2078,2285.8,2285.4,1.6418]
[1725710409285,0.3576,2285.7,2285.4,2.0274]
[1725710410480,0.3576,2285.7,2285.6,1.26]
[1725710411089,3.2078,2285.8,2285.7,0.43756]
[1725710411291,4.49305059,2286.4,2285.7,1.69756]
[1725710411292,3.5654,2286.2,2285.7,1.69756]
[1725710411599,3.5654,2286.2,2285.8,0.3795]
[1725710412498,3.2078,2285.9,2285.8,0.3795]
[1725710413893,3.2078,2285.9,2285.8,0.81704]
[1725710414095,5.49960407,2286.2,2286.1,0.43749]
[1725710414302,0.3827,2286.3,2286.1,1.69749]
[1725710414791,0.3827,2286.3,2286.1,0.43749]
[1725710415195,0.3827,2286.3,2286.1,0.79959]
[1725710416099,0.3827,2286.3,2286.2,0.43747]
[1725710417405,0.3634,2286.4,2286.2,0.43747]
[1725710417591,3.2078,2286.5,2286.1,1.6221]
[1725710417790,3.2078,2286.5,2286.3,0.43744]
[1725710418196,3.2078,2286.5,2286.4,0.43743]
[1725710418401,5.49960407,2286.9,2286.6,0.43739]
[1725710418602,0.3694,2286.8,2286.6,0.43739]
[1725710418795,0.3694,2286.8,2286.5,0.4374]
[1725710419006,0.3694,2286.8,2286.5,0.7948]
[1725710421904,0.3694,2286.8,2286.6,0.43739]
[1725710422792,0.3694,2286.8,2286.7,0.43737]
[1725710422997,3.2078,2286.9,2286.7,0.43737]
[1725710423202,3.2078,2286.9,2286.6,0.43738]
[1725710424800,3.2078,2286.9,2286.7,0.43737]
[1725710425103,6.997,2287.5,2286.7,0.43737]
[1725710425104,3.2078,2287.2,2286.7,1.26]
[1725710425301,3.2078,2287.2,2287.0,0.43731]
[1725710425302,3.5873,2287.2,2287.0,0.43731]
[1725710426415,3.5873,2287.2,2286.9,0.3731]
[1725710426603,3.5873,2287.2,2287.0,0.4373]
[1725710427501,3.5873,2287.2,2287.1,0.3858]
[1725710427710,3.5873,2287.2,2287.0,0.4373]
[1725710428507,3.5873,2287.2,2287.0,0.8231]
[1725710429112,3.5873,2287.2,2287.1,0.4373]
[1725710429419,3.64501,2287.6,2287.1,1.26]
[1725710429606,0.7288,2287.5,2287.2,0.43726]
[1725710430910,0.7288,2287.5,2287.3,0.43726]
[1725710431208,0.7288,2287.5,2287.0,0.7743]
[1725710431411,3.2078,2287.2,2287.0,0.3858]
[1725710431615,0.3655,2287.1,2286.9,1.6331]
[1725710432412,0.3655,2287.1,2287.0,0.43731]
[1725710433313,3.2078,2287.2,2287.1,0.4373]
[1725710433508,3.2078,2287.2,2287.1,1.6973]
[1725710435911,3.2078,2287.2,2287.1,1.26]
[1725710436617,0.43726,2287.3,2287.1,1.26]
[1725710436909,3.2078,2287.2,2287.1,1.26]
[1725710437121,0.43726,2287.3,2287.1,1.26]
[1725710437307,3.2078,2287.2,2287.1,1.26]
[1725710437709,3.2078,2287.2,2287.1,1.6973]
[1725710439021,0.43726,2287.3,2287.1,1.26]
[1725710439312,3.2078,2287.2,2287.1,1.26]
[1725710439519,3.2078,2287.2,2287.1,1.6973]
[1725710440016,0.3574,2287.4,2287.2,0.43727]
[1725710440314,0.3574,2287.4,2287.3,0.3726]
[1725710440315,0.79464,2287.4,2287.3,0.3726]
[1725710442218,0.79464,2287.4,2287.1,1.26]
[1725710442219,4.00244,2287.4,2287.1,0.43729]
[1725710443519,4.00244,2287.4,2287.2,0.43728]
[1725710443718,4.00244,2287.4,2287.2,0.43727]
[1725710444016,3.5652,2287.4,2287.2,0.43727]
[1725710444221,4.00244,2287.4,2287.2,0.43727]
[1725710444416,3.5652,2287.4,2287.3,0.43726]
[1725710445022,3.5652,2287.4,2287.2,0.43726]
[1725710445223,3.5652,2287.4,2287.3,0.43726]
[1725710446922,3.5652,2287.4,2287.3,1.20156]
[1725710447114,3.2078,2287.4,2287.3,2.46156]
[1725710451431,3.2078,2287.4,2287.3,2.0243]
[1725710451626,3.2078,2287.4,2286.9,4.30113]
[1725710451627,4.01834,2287.4,2287.1,0.4373]
[1725710451836,0.43726,2287.3,2287.1,0.4373]
[1725710452321,0.81996,2287.3,2287.1,0.4373]
[1725710452726,0.43726,2287.3,2287.1,0.4373]
[1725710452926,4.01835,2287.4,2287.1,0.4373]
[1725710455225,6.31015407,2287.4,2287.2,0.43726]
[1725710455428,3.5811,2287.4,2287.3,0.81156]
[1725710455627,3.5811,2287.4,2287.3,1.18176]
[1725710456827,3.5811,2287.4,2287.3,1.53986]
[1725710457032,3.2078,2287.4,2287.3,1.53986]
[1725710457426,5.49960407,2287.4,2287.3,0.3743]
[1725710457624,6.31224407,2287.4,2287.3,0.3743]
[1725710457830,6.31224407,2287.4,2287.3,0.7499]
[1725710458130,4.02044,2287.4,2287.3,0.7499]
[1725710458634,3.5832,2287.4,2287.3,0.7499]
[1725710459326,3.5832,2287.4,2287.3,1.18716]
[1725710459929,3.5832,2287.4,2287.3,0.7499]
[1725710460333,3.5832,2287.4,2287.3,1.18716]
[1725710460740,3.5832,2287.4,2287.3,0.7499]
[1725710461336,4.02044,2287.4,2287.2,1.69726]
[1725710462736,3.5832,2287.4,2287.3,0.43726]
[1725710464435,6.31224407,2287.4,2287.2,1.26]
[1725710464741,6.31224407,2287.4,2287.2,1.69728]
[1725710465135,4.02044,2287.4,2287.2,1.69728]
[1725710465525,3.2078,2287.4,2287.3,0.43726]
[1725710467331,4.250873,2287.5,2287.3,0.43726]
[1725710467636,3.2078,2287.4,2287.3,0.43726]
[1725710468041,4.250873,2287.5,2287.3,0.43726]
[1725710468235,3.2078,2287.4,2287.3,0.43726]
[1725710469241,6.638753,2287.4,2287.3,0.43726]
[1725710470138,3.430953,2287.5,2287.4,0.43724]
[1725710470336,3.430953,2287.5,2287.4,1.69724]
[1725710472346,3.430953,2287.6,2287.5,0.43722]
[1725710472548,3.430953,2287.6,2287.5,1.22742]
[1725710472737,3.430953,2287.6,2287.5,1.61462]
[1725710473142,2.86732059,2287.6,2287.5,1.61462]
[1725710475848,2.86732059,2287.7,2287.5,1.61462]
[1725710476051,2.86732059,2287.7,2287.6,1.26]
[1725710476244,2.86732059,2287.7,2287.6,1.6972]
[1725710476648,3.30451059,2287.7,2287.5,1.26]
[1725710476844,2.86732059,2287.6,2287.5,1.26]
[1725710477343,3.30451059,2287.7,2287.5,1.26]
[1725710478544,4.8084,2287.6,2287.4,1.26]
[1725710478756,6.87784059,2287.5,2287.4,1.26]
[1725710478957,7.27014059,2287.5,2287.4,1.26]
[1725710479543,0.43728,2287.2,2287.1,1.91748771]
[1725710479863,0.43728,2287.2,2287.1,2.471]
[1725710479864,5.50113386,2287.2,2287.1,2.471]
[1725710480155,3.2078,2287.2,2287.1,2.471]
[1725710480346,3.6001,2287.2,2287.1,2.471]
[1725710481051,3.2078,2287.2,2287.1,2.471]
[1725710481955,6.07455108,2287.2,2287.1,2.471]
[1725710482350,3.2078,2287.2,2287.1,2.471]
[1725710483148,6.07459277,2287.2,2287.1,2.471]
[1725710483350,3.2078,2287.2,2287.1,2.471]
[1725710484961,6.0746353,2287.2,2287.1,2.471]
[1725710485661,2.8668353,2287.2,2287.1,2.471]
[1725710487656,3.2078,2287.3,2287.1,2.471]
[1725710487857,3.823253,2287.4,2287.1,2.0337]
[1725710488062,0.3923,2287.4,2287.3,1.69726]
[1725710488262,2.29344757,2287.4,2287.3,1.69726]
[1725710489260,2.29344757,2287.5,2287.4,0.43724]
[1725710489457,2.29344757,2287.5,2287.4,0.79894]
[1725710489661,2.29344757,2287.5,2287.4,1.16784]
[1725710490057,5.50124757,2287.6,2287.5,0.43722]
[1725710490257,3.2078,2287.6,2287.5,2.05632]
[1725710490463,3.2078,2287.6,2287.5,3.20010771]
[1725710491560,3.2078,2287.6,2287.5,2.05632]
[1725710492459,2.66224757,2287.8,2287.7,0.43718]
[1725710492766,2.66224757,2287.8,2287.7,1.69718]
[1725710493369,0.3688,2287.8,2287.7,1.69718]
[1725710495259,2.66224757,2287.8,2287.7,1.69718]
[1725710500270,0.3785,2287.9,2287.8,0.43716]
[1725710500466,3.05809848,2287.9,2287.8,0.43716]
[1725710500669,3.05809848,2287.9,2287.8,0.80366]
[1725710501364,0.7678,2287.9,2287.8,0.80366]
[1725710503374,3.63460946,2287.9,2287.8,0.80366]
[1725710506562,0.7678,2287.9,2287.8,0.80366]
[1725710506767,2.28912609,2287.9,2287.8,0.80366]
[1725710506982,2.28912609,2287.9,2287.8,1.19856]
[1725710508472,2.86680946,2287.9,2287.8,1.19856]
[1725710508673,3.23780946,2287.9,2287.8,1.19856]
[1725710509469,0.371,2287.9,2287.8,0.43716]
[1725710509785,0.371,2287.9,2287.8,0.81886]
[1725710511276,0.371,2287.9,2287.7,2.08347]
[1725710511579,0.43711,2288.1,2287.8,0.43715]
[1725710511765,0.81141,2288.1,2287.9,2.0197]
[1725710514478,4.01921,2288.1,2287.9,2.0197]
[1725710514667,0.43712,2288.0,2287.9,1.26]
[1725710517477,3.30392946,2288.0,2287.9,1.26]
[1725710518573,7.23720946,2288.0,2287.6,0.3935]
[1725710518773,4.30076,2287.7,2287.5,1.26]
[1725710518970,0.8002,2287.6,2287.5,1.26]
[1725710519180,4.7342,2287.6,2287.1,0.82779]
[1725710519382,4.7342,2287.6,2286.9,0.7523]
[1725710519383,2.28884995,2287.2,2287.0,0.4373]
[1725710519573,2.28884995,2287.2,2287.0,0.8278]
[1725710519775,2.65184995,2287.2,2287.0,0.8278]
[1725710519982,2.65184995,2287.2,2287.0,0.3905]
[1725710520184,2.65184995,2287.2,2287.0,0.8278]
[1725710520382,2.65184995,2287.2,2287.1,1.26]
[1725710520684,0.363,2287.2,2287.1,1.26]
[1725710521483,2.65134963,2287.2,2287.1,1.26]
[1725710522678,2.28834963,2287.3,2287.2,0.43728]
[1725710523073,2.28834963,2287.3,2287.2,0.82088]
[1725710524286,2.28834963,2287.4,2287.2,0.82088]
[1725710524479,2.28834963,2287.4,2287.3,1.6538]
[1725710524984,2.28834963,2287.4,2287.3,1.26]
[1725710525690,3.574,2287.5,2287.3,1.26]
[1725710526386,4.01122,2287.5,2287.3,1.26]
[1725710527993,0.80342,2287.5,2287.3,1.26]
[1725710528291,3.574,2287.5,2287.3,1.69726]
[1725710528793,3.574,2287.5,2287.4,0.43724]
[1725710528986,3.574,2287.5,2287.4,0.83164]
[1725710529583,6.32001963,2287.8,2287.5,0.43722]
[1725710529796,6.32001963,2287.8,2287.6,1.6511]
[1725710532492,2.28834963,2287.7,2287.6,1.6511]
[1725710532989,6.32001963,2287.8,2287.6,1.6511]
[1725710533191,6.32001963,2287.8,2287.6,2.0883]
[1725710533489,2.28834963,2287.7,2287.6,2.0883]
[1725710534897,2.28834963,2287.7,2287.6,1.6511]
[1725710535092,2.72552963,2287.7,2287.6,1.6511]
[1725710536201,2.72552963,2287.7,2287.6,1.26]
[1725710536903,2.28834963,2287.7,2287.6,1.26]
[1725710537586,2.72552963,2287.7,2287.6,1.26]
[1725710540597,0.43718,2287.7,2287.6,1.26]
[1725710547605,2.72620316,2287.7,2287.6,1.26]
[1725710548896,0.43718,2287.7,2287.6,1.26]
[1725710550005,0.43722,2287.5,2287.4,0.3944]
[1725710550200,3.64502,2287.5,2287.4,1.6544]
[1725710551503,3.2078,2287.5,2287.4,1.6544]
[1725710552204,3.64502,2287.5,2287.4,1.6544]
[1725710555110,0.43722,2287.5,2287.4,1.6544]
[1725710555512,3.64502,2287.5,2287.4,1.6544]
[1725710555713,5.93404316,2287.5,2287.4,1.6544]
[1725710556619,3.64502,2287.5,2287.4,1.6544]
[1725710558012,3.2078,2287.5,2287.4,2.09164]
[1725710560517,6.06907895,2287.5,2287.4,2.09164]
[1725710561515,2.86127895,2287.5,2287.4,2.09164]
[1725710561813,6.06907895,2287.5,2287.4,2.09164]
[1725710562712,0.4372,2287.6,2287.4,2.09164]
[1725710562713,2.72963972,2287.6,2287.4,2.09164]
[1725710563116,3.2078,2287.5,2287.4,2.09164]
[1725710563312,2.72963972,2287.6,2287.4,2.09164]
[1725710564114,2.29243972,2287.6,2287.5,0.43722]
[1725710564415,2.29243972,2287.6,2287.4,2.09162]
[1725710564719,2.29243972,2287.6,2287.4,3.23540771]
[1725710565117,2.29243972,2287.6,2287.4,2.09162]
[1725710565324,2.72963972,2287.6,2287.4,3.23540771]
[1725710565517,2.29243972,2287.6,2287.4,3.23540771]
[1725710566123,2.29243972,2287.5,2287.4,3.23540771]
[1725710567013,2.29243972,2287.6,2287.4,3.23540771]
[1725710567214,2.29243972,2287.5,2287.4,1.97540771]
[1725710569022,2.29454208,2287.7,2287.6,0.4372]
[1725710569318,2.29454208,2287.8,2287.6,10.19170682]
[1725710569515,2.29454208,2287.8,2287.7,2.40617008]
[1725710569714,0.80844,2287.9,2287.7,4.59319612]
[1725710569918,0.3713,2287.9,2287.8,0.3849]
[1725710570424,0.3713,2287.9,2287.8,1.53107008]
[1725710570620,0.3713,2287.9,2287.8,0.3849]
[1725710571722,8.173453,2287.9,2287.6,1.26]
[1725710572024,0.43718,2287.7,2287.6,1.26]
[1725710572220,3.868133,2287.7,2287.6,1.26]
[1725710572419,8.193453,2287.7,2287.4,0.7443]
[1725710572623,4.227963,2287.6,2287.4,0.7443]
[1725710572829,0.43722,2287.5,2287.4,0.7443]
[1725710573520,3.868163,2287.6,2287.4,1.18153]
[1725710573721,0.3896,2287.5,2287.4,1.18153]
[1725710574020,0.3896,2287.5,2287.4,2.44153]
[1725710574221,0.3896,2287.5,2287.4,2.0043]
[1725710576731,0.3896,2287.5,2287.4,2.44154]
[1725710577028,3.430953,2287.6,2287.4,2.44154]
[1725710577831,3.30502239,2287.6,2287.4,3.58771008]
[1725710578030,4.03731239,2287.7,2287.4,3.58771008]
[1725710578329,1.16949,2287.7,2287.6,1.26]
[1725710578722,0.7323,2287.7,2287.6,1.26]
[1725710578922,3.60001107,2287.7,2287.6,1.26]
[1725710579133,4.03719107,2287.7,2287.6,1.26]
[1725710582630,4.03719107,2287.7,2287.6,1.6972]
[1725710588133,4.03719107,2287.7,2287.6,1.26]
[1725710588637,1.16948,2287.7,2287.6,1.26]
[1725710589839,1.16948,2287.7,2287.4,0.3711]
[1725710589840,0.43722,2287.5,2287.4,0.3711]
[1725710590030,3.30517353,2287.5,2287.4,1.6311]
[1725710590223,4.39823353,2287.5,2287.4,1.6311]
[1725710590424,0.43724,2287.4,2287.3,1.26]
[1725710590739,0.81374,2287.4,2287.3,1.26]
[1725710592938,4.244693,2287.4,2287.3,1.26]
[1725710594230,3.807453,2287.4,2287.3,1.69726]
[1725710594435,3.430953,2287.6,2287.5,0.43722]
[1725710594639,4.241743,2287.7,2287.5,1.69722]
[1725710595029,4.241743,2287.7,2287.6,0.3666]
[1725710595424,3.868143,2287.7,2287.6,0.3666]
[1725710595628,3.87685829,2288.2,2287.9,0.43714]
[1725710595832,3.87685829,2288.2,2288.1,1.26]
[1725710596039,4.26545829,2288.2,2288.1,1.26]
[1725710596339,3.2078,2288.3,2288.2,0.43709]
[1725710596537,3.87680829,2288.5,2288.2,0.43709]
[1725710596836,3.87680829,2288.5,2288.4,1.26]
[1725710597234,0.43704,2288.5,2288.4,1.26]
[1725710597930,3.87680829,2288.5,2288.4,1.26]
[1725710598131,0.43704,2288.5,2288.4,1.26]
[1725710601038,1.19122,2288.6,2288.4,1.26]
[1725710601236,0.43703,2288.5,2288.4,1.26]
[1725710601448,1.19122,2288.6,2288.4,1.26]
[1725710603736,1.19122,2288.6,2288.4,1.6505]
[1725710604443,4.39902,2288.6,2288.4,1.6505]
[1725710604942,4.39902,2288.6,2288.4,2.08754]
[1725710604943,3.962,2288.6,2288.4,2.08754]
[1725710609860,0.7542,2288.6,2288.4,2.08754]
[1725710610941,3.2078,2288.7,2288.4,1.6505]
[1725710611249,7.68343561,2288.8,2288.6,1.26]
[1725710611448,8.12040561,2288.8,2288.6,1.26]
[1725710611649,7.68343561,2288.8,2288.6,1.69701]
[1725710611949,7.68343561,2288.8,2288.6,1.26]
[1725710612149,8.12040561,2288.8,2288.6,1.26]
[1725710612348,7.68343561,2288.8,2288.6,1.69701]
[1725710612947,8.12040561,2288.8,2288.6,1.26]
[1725710613147,8.12040561,2288.8,2288.6,1.69701]
[1725710613841,8.12040561,2288.8,2288.7,0.3637]
[1725710614247,0.43692,2289.1,2288.8,0.43697]
[1725710614449,0.43692,2289.1,2288.9,1.26]
[1725710614450,1.20212,2289.1,2288.9,1.26]
[1725710615451,1.20212,2289.1,2288.9,1.69695]
[1725710615452,0.7652,2289.1,2288.9,1.69695]
[1725710616153,0.7652,2289.1,2288.9,1.26]
[1725710616355,1.20211,2289.1,2288.9,1.26]
[1725710617356,1.20211,2289.1,2288.9,1.69695]
[1725710617555,0.7652,2289.1,2288.9,1.69695]
[1725710618153,1.20212,2289.1,2288.9,1.69695]
[1725710618352,0.7652,2289.1,2288.9,1.69695]
[1725710618742,0.7652,2289.1,2289.0,0.3799]
[1725710619057,0.3829,2289.2,2289.0,0.81682]
[1725710619247,0.3829,2289.2,2289.1,1.26]
[1725710619453,1.17808,2289.3,2289.1,1.26]
[1725710619954,0.7412,2289.3,2289.1,1.69691]
[1725710620151,1.17808,2289.3,2289.1,1.26]
[1725710620350,0.43689,2289.2,2289.0,1.19042]
[1725710620552,0.43689,2289.2,2289.1,1.26]
[1725710621149,1.17809,2289.3,2289.1,1.26]
[1725710621361,0.43689,2289.2,2289.1,1.26]
[1725710621655,1.17809,2289.3,2289.1,1.26]
[1725710622453,0.7412,2289.3,2289.1,1.69691]
[1725710622858,1.17808,2289.3,2289.2,1.26]
[1725710623462,0.7412,2289.3,2289.2,1.26]
[1725710624159,0.7412,2289.3,2289.2,1.69689]
[1725710624353,0.3728,2289.3,2289.2,1.69689]
[1725710624555,0.3855,2289.4,2289.2,1.69689]
[1725710625063,0.79625,2289.5,2289.3,0.3594]
[1725710625263,0.79625,2289.5,2289.4,1.26]
[1725710626459,0.3594,2289.5,2289.4,1.26]
[1725710627262,0.79624,2289.5,2289.4,1.26]
[1725710627460,0.3594,2289.5,2289.4,1.26]
[1725710627959,0.82222,2289.6,2289.4,2.06985]
[1725710629259,0.82222,2289.6,2289.4,1.633]
[1725710630254,0.43684,2289.5,2289.4,1.26]
[1725710630457,0.43695,2289.0,2288.3,0.27619171]
[1725710630656,0.43696,2288.9,2288.8,1.26]